Cogmind - Beta 15 @@@ ROGUE MODE // 2025.05.24 @ 00:34:59 Player: Andru7428 Result: Destroyed by D-53 Grenadier with Mini Grenade Launcher Performance ------------- Evolutions (0) 0 Regions Visited (2) 400 Robots Destroyed (29) 145 Value Destroyed (624) 624 Prototype IDs (2) 40 Alien Tech Used (0) 0 Bonus (35) 35 TOTAL SCORE: 1244 Bonus ------- Follower Combat Kills 35 Cogmind --------- Core Integrity 0/250 Matter 280/300 Energy 95/125 System Corruption 0% Temperature Cool (0) Movement Treading (160) Location -10/Mines Parts ------- > --- POWER (1) -------- Light Ion Engine > --- PROPULSION (2) --- Light Treads Light Treads > --- UTILITY (2) ------ Large Storage Unit > --- WEAPON (2) ------- Medium Laser Light Assault Rifle > --- INVENTORY (15) --- Light Treads Light Treads Light Treads Seismic Detector Targeting Computer ECM Suite Mining Laser Mining Claw Shock Trap Shock Trap Shock Trap Shock Trap Peak State ------------ > --- POWER ------------ Light Ion Engine > --- PROPULSION ------- Light Treads Light Treads > --- UTILITY ---------- Large Storage Unit Seismic Detector > --- WEAPON ----------- EM Pulse Gun Assault Rifle > --- INVENTORY -------- Light Ion Engine Aluminum Leg Aluminum Leg Wheel Wheel Medium Storage Unit Targeting Computer ECM Suite Light Armor Plating Light Assault Rifle [Rating: 8] Favorites ----------- Power Light Ion Engine Engine Light Ion Engine Propulsion Light Treads Treads Light Treads Utility Large Storage Unit Device Seismic Detector Storage Large Storage Unit Protection Light Armor Plating Weapon EM Pulse Gun Energy Gun EM Pulse Gun Ballistic Gun Assault Rifle Build | -11 -10 -10 ------- Run | Yrd Mat Min Slots Evolved . | . . . Power . | . . . Propulsion . | . . . Utility . | . . . Weapon . | . . . Parts Attached 21 | 7 12 2 Power 2 | 1 1 . Engine 2 | 1 1 . Core . | . . . Reactor . | . . . Propulsion 5 | 2 3 . Treads 5 | 2 3 . Leg . | . . . Wheel . | . . . Hover . | . . . Flight . | . . . Utility 5 | 2 3 . Device 1 | 1 . . Storage 3 | 1 2 . Processor . | . . . Hackware . | . . . Protection 1 | . 1 . Artifact . | . . . Weapon 9 | 2 5 2 Energy Gun 7 | 1 5 1 Energy Cannon . | . . . Ballistic Gun 2 | 1 . 1 Ballistic Cannon . | . . . Launcher . | . . . Special Weapon . | . . . Impact Weapon . | . . . Slashing Weapon . | . . . Piercing Weapon . | . . . Special Melee Weapon . | . . . Unidentified Prototypes . | . . . Parts Lost 9 | . 7 2 Power 1 | . 1 . Propulsion 1 | . 1 . Utility 1 | . 1 . Weapon 6 | . 4 2 Highest Loss Streak 3 | . 3 2 To Critical Strikes . | . . . Average Backups 9 | 4 9 9 Power . | . . . Propulsion 3 | 2 3 2 Utility 3 | . 3 3 Weapon 2 | 1 2 3 Tool/Special . | . . . Unused Backups 11 | . 4 7 Power . | . . . Propulsion 7 | . 4 3 Utility 2 | . . 2 Weapon 2 | . . 2 Tool/Special . | . . . Average Slot Usage (%) 92 | . 94 84 Engine 14 | . 14 14 Treads 28 | . 28 28 Device 4 | . 4 . Storage 14 | . 14 14 Protection 2 | . 3 . Energy Gun 20 | . 19 26 Ballistic Gun 7 | . 8 . Peak Build Rating 8 | 7 8 7 Average Rating 6 | 4 7 6 On Entrance 4 | . 7 6 Naked Turns . | . . . Heaviest Build 30 | 13 30 27 Greatest Support 40 | 40 40 40 Greatest Overweight (x) . | . . . Average Overweight (x) . | . . . Largest Inventory Capacity 15 | 8 15 15 Average Capacity 13 | 7 13 15 Most Carried 15 | 7 15 14 Average Carried 10 | 5 10 12 Final Capacity 15 | 8 15 15 Final Carried 12 | 6 8 12 Class Distribution -------------------- 100% | Mutant Dominant Class ---------------- Mutant | -10/Materials Mutant | -10/Mines Resources | -11 -10 -10 ----------- Run | Yrd Mat Min Matter Collected 503 | 248 255 . Remotely . | . . . Salvage Created 954 | 73 881 . Parts 71 | 11 60 . Haulers Intercepted 2 | . 2 . Recyclers Shooed . | . . . Parts Field Recycled . | . . . Retrieved Matter . | . . . Parts Self-Destructed . | . . . Prevented . | . . . Kills | -11 -10 -10 ------- Run | Yrd Mat Min Combat Hostiles Destroyed 17 | . 17 . Guns 15 | . 15 . AOE 2 | . 2 . Classes Destroyed 7 | 1 6 . Worker 3 | . 3 . Builder 1 | . 1 . Tunneler 4 | 4 . . Hauler 2 | . 2 . Watcher 2 | . 2 . Swarmer 3 | . 3 . Grunt 14 | . 14 . Best Kill Streak 4 | 4 4 . Combat Bots Only 3 | . 3 . Max Kills in Single Turn 2 | 1 2 . Gunslinging . | . . . Exploded 1 | . 1 . Melee . | . . . Uniques/NPCs Destroyed . | . . . Combat | -11 -10 -10 -------- Run | Yrd Mat Min Hostile Shots Fired 98 | . 93 5 Missed 21 | . 21 . Hits 77 | . 72 5 Projectile 77 | . 72 5 AOE 5 | . . 5 Critical Strikes 1 | . 1 . Damage Taken 1313 | 40 1072 201 Core 256 | . 190 66 Absorbed by Shields . | . . . Core Remaining (%) 100 | 100 . . Volleys Fired 69 | 5 64 . Largest 2 | 2 2 . Hottest 80 | 60 80 . Shots Fired 137 | 10 127 . Gun 137 | 10 127 . Cannon . | . . . Launcher . | . . . Special . | . . . Kinetic 47 | 5 42 . Thermal . | . . . Explosive . | . . . Electromagnetic 90 | 5 85 . Robot Hit Streak 12 | 3 12 . Robot Miss Streak 4 | 2 4 . Penetration Max . | . . . Secondary Targets . | . . . Shots Hit Robots 88 | 6 82 . Core Hits 42 | 4 38 . Critical Kills . | . . . Critical Parts Destroyed . | . . . Critical Strikes 1 | . 1 . Corrupt 1 | . 1 . Melee Attacks . | . . . Impact . | . . . Slashing . | . . . Piercing . | . . . Sneak Attacks . | . . . Combat Hostiles . | . . . Follow-up Attacks . | . . . Damage Inflicted 1701 | 132 1569 . Guns 1255 | 85 1170 . Cannons . | . . . Explosions 444 | 47 397 . Melee . | . . . Ramming 2 | . 2 . Kinetic 411 | 42 369 . Thermal 444 | 47 397 . Explosive . | . . . Electromagnetic 844 | 43 801 . Impact . | . . . Slashing . | . . . Piercing . | . . . Highest Corruption . | . . . Average Corruption . | . . . Corruption Purged . | . . . Corruption Blocked . | . . . Overload Shots . | . . . Overflow Damage 6 | . 6 . Projectiles . | . . . Explosions 6 | . 6 . Melee . | . . . Knockbacks . | . . . Impact . | . . . Kinetic . | . . . Secondary . | . . . Self-Inflicted Damage 200 | 40 160 . Shots 6 | 1 5 . Rammed 1 | . 1 . Targets Rammed 1 | . 1 . Kicked . | . . . Crushed . | . . . Highest Temperature 235 | 12 235 . Average Temperature 48 | 12 48 . Received Heat Transfer 378 | . 378 . Siege Activations . | . . . Martial Activations . | . . . Shielding Activations . | . . . Robots Disrupted . | . . . Combat Hostiles . | . . . Robots Corrupted . | . . . Combat Hostiles . | . . . Parts Fried 2 | . 2 . Impact Corruptions . | . . . Robots Melted . | . . . Combat Hostiles . | . . . Parts Melted 1 | . 1 . Heat Transferred 600 | 100 500 . Parts Sabotaged . | . . . Parts Stolen . | . . . Parts Stripped . | . . . Power Chain Reactions 8 | 1 7 . Alert | -11 -10 -10 ------- Run | Yrd Mat Min Maximum Alert Level 1 | . 1 . Low Security (%) 98 | 100 98 100 Level 1 1 | . 1 . Level 2 . | . . . Level 3 . | . . . Level 4 . | . . . Level 5 . | . . . High Security . | . . . Max Security . | . . . Peak Influence 211 | 10 211 32 Initial 6 | . . 6 Average 56 | 1 70 2 Influence Increases 694 | 20 642 32 Destroy 0b10 Robot/C 360 | . 340 20 Destroy 0b10 Robot/NC 60 | 20 40 . Destroy Leader 98 | . 88 10 Allied During Kill 2 | . . 2 Successful Hack 10 | . 10 . Select Force Hacks 30 | . 30 . Disable Machine 30 | . 30 . Destroy Structure 14 | . 14 . Lose Combat Pursuer 90 | . 90 . Influence Decreases 694 | 20 625 49 Entered New Map 11 | . . 11 Time Decay 443 | 20 405 18 Lost Part 70 | . 70 . Lost Ally 20 | . . 20 Purge Threat 150 | . 150 . Squads Dispatched 5 | . 5 . Investigation 4 | . 4 . Extermination . | . . . Reinforcement 1 | . 1 . Assault . | . . . Garrison . | . . . Intercept . | . . . Searches Triggered . | . . . Construction Impeded . | . . . Haulers Reinforced . | . . . Active Scanning Responses . | . . . Cargo Convoy Interrupts . | . . . Stealth | -11 -10 -10 --------- Run | Yrd Mat Min Distress Signals 2 | . 2 . Communications Jammed . | . . . Distress Signals . | . . . Times Spotted 33 | . 31 2 Peak Tracking Total 4 | . 4 2 Tactical Retreats 5 | . 5 . Traps | -11 -10 -10 ------- Run | Yrd Mat Min Traps Triggered 4 | . 4 . Indirectly . | . . . Trap Hack Attempts . | . . . Triggered . | . . . Disarmed . | . . . Reprogrammed . | . . . Reused . | . . . Traps Extracted . | . . . Installed . | . . . Triggered . | . . . Most Traps Carried 4 | . . 4 Machines | -11 -10 -10 ---------- Run | Yrd Mat Min Machines Disabled 2 | . 2 . Max in Single Turn 1 | . 1 . Machines Repaired . | . . . Machines Dismantled . | . . . Machines Sabotaged . | . . . Overloaded Fab Kills . | . . . Hacking | -11 -10 -10 --------- Run | Yrd Mat Min Machines Accessed 9 | . 9 . Terminals 7 | . 7 . Fabricators . | . . . Repair Stations 1 | . 1 . Recycling Units 1 | . 1 . Scanalyzers . | . . . Garrison Access . | . . . Total Hacks 23 | . 23 . Successful 12 | . 12 . Failed 11 | . 11 . Catastrophic . | . . . Database Lockouts . | . . . Manual 17 | . 17 . Terminals 21 | . 21 . Fabricators . | . . . Repair Stations 1 | . 1 . Recycling Units 1 | . 1 . Scanalyzers . | . . . Garrison Access . | . . . Terminal Hacks 4 | . 4 . Robot Analysis 1 | . 1 . Prototype ID Bank 1 | . 1 . Unreport Threat 1 | . 1 . Locate Traps 1 | . 1 . Fabricator Hacks . | . . . Repair Station Hacks . | . . . Recycling Unit Hacks . | . . . Scanalyzer . | . . . Garrison Access Hacks . | . . . Unauthorized Hacks 8 | . 8 . Terminals 7 | . 7 . Botnet 2 | . 2 . Skim 5 | . 5 . Fabricators . | . . . Repair Stations . | . . . Recycling Units 1 | . 1 . Tunnel 1 | . 1 . Scanalyzers . | . . . Garrison Access . | . . . Data Cores Recovered . | . . . Used . | . . . Hacking Detections 8 | . 8 . Full Trace Events . | . . . Feedback Events . | . . . Feedback Blocked . | . . . Robot Schematics Acquired . | . . . Robots Built . | . . . Authchips . | . . . Time . | . . . Total Robot Build Rating . | . . . Part Schematics Acquired . | . . . Parts Built . | . . . Authchips . | . . . Time . | . . . Total Part Build Rating . | . . . Parts Repaired . | . . . Time . | . . . Parts Recycled . | . . . Recycled Matter . | . . . Retrieved Matter . | . . . Retrieved Components . | . . . Parts Scanalyzed . | . . . Part Schematics Acquired . | . . . Parts Damaged . | . . . Bothacking | -11 -10 -10 ------------ Run | Yrd Mat Min Used RIF Installer . | . . . Robots Hacked . | . . . Non-combat . | . . . Combat . | . . . Robot Hacks Applied . | . . . Relay Couplers Released . | . . . Fabnet Peak Effective % . | . . . Robots Rewired . | . . . Allies Hacked . | . . . Hacks Repelled . | . . . Allies | -11 -10 -10 -------- Run | Yrd Mat Min Total Allies 1 | . . 1 Largest Group 1 | . . 1 Highest-Rated Group 31 | . . 31 Highest-Rated Ally 31 | . . 31 Total Orders . | . . . Ally Attacks 7 | . . 7 Total Damage 106 | . . 106 Kills 1 | . . 1 Allies Corrupted . | . . . Allies Melted . | . . . Intel | -11 -10 -10 ------- Run | Yrd Mat Min Active Infowar (turns) 490 | 16 474 . Seismic 490 | 16 474 . Robot Analysis Total 1 | . 1 . Derelict Logs Recovered 1 | . . 1 Drone Launches . | . . . Drone Recoveries . | . . . Exploration | -11 -10 -10 ------------- Run | Yrd Mat Min Turns Passed 1689 | 113 1341 235 Spaces Moved 820 | 53 625 142 Core 3 | 3 . . Treads 817 | 50 625 142 Legs . | . . . Wheels . | . . . Hover . | . . . Flight . | . . . Fastest Speed 50 | 50 160 160 Average Speed 159 | 153 160 160 Slowest Speed 160 | 160 160 160 Overloaded Moves . | . . . Propulsion Burnouts . | . . . Robots Hopped . | . . . Potential Cave-ins . | . . . Cave-ins Triggered . | . . . Exploration Rate (%) 44 | 5 94 34 Regions Visited 2 Branch Regions 1 Pre-discovered Areas 3 | . 3 . Known Exits Taken . | . . . Unknown Exits Taken 2 | 1 1 . Scrap Searched 1 | . . 1 Spaces Dug . | . . . Terrain Destroyed 16 | 6 10 . Melee . | . . . Projectile . | . . . AOE 16 | 6 10 . Terrain Rammed . | . . . Walls Destroyed . | . . . Machines Disabled . | . . . Actions | -11 -10 -10 --------- Run | Yrd Mat Min Total 1062 | 72 840 150 Wait 118 | . 118 . Move 818 | 52 624 142 Hop . | . . . Pick Up 26 | 8 12 6 Fast Attach 5 | 5 . . Attach 10 | 2 6 2 Detach . | . . . Swap 6 | . 6 . Drop 9 | . 9 . Fire 69 | 5 64 . Melee . | . . . Ram . | . . . Kick . | . . . Crush 1 | . 1 . Escape Stasis . | . . . Rewire . | . . . Trap . | . . . Miscellaneous . | . . . Route ------- -11/Scrapyard -10/Materials (discovered 5 exits: *Mat x3 / [*Min] / [*Sub]) -10/Mines (discovered 3 exits: *Mat x2 / [*Sub]) History --------- Turn | Location | Event 20 | -11/Scrapyard | Discovered new exit (range 16) 114 | -11/Scrapyard | Entered Materials 302 | -10/Materials | Build established: Mutant 328 | -10/Materials | Discovered new exit (range 10) 887 | -10/Materials | Discovered new exit (range 3) 936 | -10/Materials | Core integrity fell below 50% 964 | -10/Materials | Lost 3 parts (1u2w) 1083 | -10/Materials | Lost 3 parts (1p1n1w) 1084 | -10/Materials | Discovered new exit (range 12) 1154 | -10/Materials | Learned location of Mines (-8) 1162 | -10/Materials | Discovered new exit (range 5) 1264 | -10/Materials | Learned Storage stockpile data 1307 | -10/Materials | Learned location of 2 exits from Subcaves 1342 | -10/Materials | Learned location of 1 exit from Recycling 1388 | -10/Materials | Learned location of 1 exit from Storage 1426 | -10/Materials | Discovered new exit (range 9) 1442 | -10/Materials | Learned location of 1 exit from Recycling 1455 | -10/Materials | Entered Mines 1458 | -10/Mines | Received a Mining Laser from a helpful Derelict 1466 | -10/Mines | Identified exit to Materials 1503 | -10/Mines | Found a hidden stash of uninstalled traps 1569 | -10/Mines | Discovered exit to Materials (range 7) 1590 | -10/Mines | Discovered new exit (range 10) 1680 | -10/Mines | Assembled infested the area 1688 | -10/Mines | Core integrity fell below 20% 1690 | -10/Mines | Destroyed by D-53 Grenadier with Mini Grenade Launcher Last Messages --------------- 01468_ QX-SN0(g): "Mining lasers are a lot more useful than you might think..." 01503_ A stash of uninstalled traps is collected here! 01506_ Acquired Shock Trap. 01532_ K-01 Serf collects debris. 01540_ K-01 Serf cleans the Plasma Injector. 01569_ EXIT=FOUND: MATERIALS 01590_ EXIT=FOUND 01596_ Searching scrap... 01596_ Found Tractor Beam. 01596_ Found Lgt. Treads. 01596_ Found 36 Matter. 01606_ Acquired Lgt. Treads. 01642_ K-01 Serf collects debris. 01680_ ALERT: Infestation in the mines, dispatching Demolisher response squad. 01686_ C-30 ARC bursts open, deploying its payload. 01686_ D-53 Grenadier unfolds itself. 01687_ EM Pulse Gun destroyed. 01690_ The unstable cave ceiling collapses. Map ----- +----------------------------------------------------+ | ???????????????????????????## #########????????? | | ??????????????????????????## ##????????????????? | | ?????????????????????????## #?????????????????? | | ?????????????????????????# #?????????????????? | | ?????????????????????????# #???#####?????????? | | ?????????????????????????# ##?## ##????????? | | ?????????????????????????## ### #????????? | | ??????????????????????????## #????????? | | ???????????????????????????# #???#####? | | ???????????????????????????# ##### ## | | ???????????????????????????# ## # | | ???????????????????????????# #### #### """ | | ?????????????????? ?????# ###??# #??# """ | | ?????????????????? ?????# ##????# ##?# """ | | ??????????????????? ???# ##?????# #?# | | ??????????????????? ?? #???????### #?## | | ???????????????????? ??????????# #??#### | | ???????????????????? #?????????## ####??# | | ????????????????????? #?#####???## ##?# | | ?????????????????????#u #??# #???# ### | | ?????????????????????# ###### ##?## """ | | ?????????????????????# k# # ## ### """ | | ????????????????????## d """ ##### | | ????????????????????# d% #??? | | ????????????????????## ## ##??? | | ????????????????????# @ #### ###???? | | ????????????????????# #??## ##?????? | | ????????????????????# # #???# ##??????? | | ????????????????????## ##???# ##??????? | | ?????????????????????### ##???## #??????? | | ???????????????????????##### ##???## < #??????? | | ????????????????????????????##????# #??????? | | ??????????????????????????????????# ##??????? | | ??????????????????????????????????# ####???????? | | ??????????????????????????????????## #??????????? | | ???????????????????????????????????# #??????????? | | ???????????????????????????????????# #???#####??? | | ???????????????????????????????????# #### ##?? | | ???????????????????????????????????# ! #?? | | ???????????????????????????????????# % #?? | | ???????????????????????????????????# #### #?? | | ???????????????????????????????????# #???###<##?? | | ?????????????????????????????????### ##?????????? | | ??????????????????????????????#### #?????????? | | ??????????????????????????????# #?????????? | | ?????????????????????????????# #????????? | | ?????????????????????????????# #????????? | | ?????????????????????????????## ## ##????????? | | ??????????????????????????????###?######?????????? | | ?????????????????????????????????????????????????? | +----------------------------------------------------+ Best States ------------- Heat Dissipation 25 Energy Generation 10 Energy Capacity 125 Matter Stores 300 Matter Capacity 300 Sight Range 16 Terrain Scan Density 10 Armor Coverage 150 Evasion (%) 40 Recoil Reduction 2 Item Schematics ----------------- None Robot Schematics ------------------ None Fabricated ------------ Nothing Repaired ---------- Nothing Alien Tech Used ----------------- None Achievements -------------- None Challenges ------------ None Game ------ Seed CoordinationStormDerivative Manual? 0 Play Time 00:14:36 Cumulative 330.9 hours Start 2025.05.23 @ 23:02:03 End 2025.05.24 @ 00:34:59 Sessions 1 Manual Loads 0 Difficulty Rogue Special Mode None Game No. 213 Rogue 213 Adventurer 0 Explorer 0 Win Type - Total 6 Types 6/0/0/0/0/0/0/0/0/0 Lore% 73 Gallery% 72 Achievement% 66 Wizard Run 0 Options --------- Layout 0 ASCII 0 Keyboard 1 Movement Numpad Keybinds 0 Fullscreen 2 Font 18/SmallcapsGlow Map View 76x50 Zoom Use 0% Tactical HUD 1 Map Filters NONE Filters NONE Steam 1 RUN: 007b6b8f-2da6-46d3-83ca-950e12e41e6f